Workbook

Sheet Титул
B1: утвержден решением педагогического совета (протокол № 2-1\17-18 от 25 августа 2019 года), приказ № 2\2 от 25 августа 2017 г.
AK2: Утверждаю
AK4: Директор
AK6: Пшунетлев А.К.
A9: УЧЕБНЫЙ ПЛАН
A10: основной профессиональной образовательной программы среднего профессионального образования
A11: Автономной некоммерческой профессиональной образовательной организация «Сочинский колледж управления» (АНПОО «Сочинский колледж управления»)
A12: наименование образовательного учреждения (организации)
A13: по специальности среднего профессионального образования
A14: 40.02.01 | G14: Право и организация социального обеспечения 2017 год набора
A15: код | G15: наименование специальности
A16: по программе базовой подготовки
A17: на базе | E17: основное общее образование
A19: квалификация: | G19: юрист
A21: форма обучения | G21: Очная | Q21: нормативный срок освоения ОПОП | AC21: 2г 10м | AI21: год начала подготовки по УП | AS21: 2016
A23: профиль получаемого профессионального образования | U23: Гуманитарный
U24: при реализации программы среднего (полного) общего образования
A26: Приказ об утверждении ФГОС | L26: от | N26: 2014-05-12 | S26: № | U26: 508

Sheet График
A2: 1 Календарный учебный график
A3: Курс | B3: Сентябрь | F3: 1-7 | G3: Октябрь | J3: 29-4 нояб | K3: Ноябрь | O3: Декабрь | S3: 1-6 | T3: Январь | W3: 28-3 фев | X3: Февраль | AA3: 25-3 мар | AB3: Март | AF3: 1 - 7 | AG3: Апрель | AJ3: 29-5 мая | AK3: Май | AO3: Июнь | AS3: 1-7 | AT3: Июль | AW3: 29-4 | AX3: Август
B4: 3 - 9 | C4: 10 - 16 | D4: 17 - 23 | E4: 24 - 30 | G4: 8-14 | H4: 15-21 | I4: 22-28 | K4: 5-11 | L4: 13-18 | M4: 19-25 | N4: 26-2 дек | O4: 3-9 | P4: 10-16 | Q4: 17-23 | R4: 24-30 | T4: 7-13 | U4: 14-20 | V4: 21-27 | X4: 4-10 | Y4: 11-17 | Z4: 18-24 | AB4: 4-10 | AC4: 11-17 | AD4: 18-24 | AE4: 25-30 | AG4: 8-14 | AH4: 15-21 | AI4: 22-28 | AK4: 6-12 | AL4: 13-19 | AM4: 20-26 | AN4: 27-2 июн | AO4: 3-9 | AP4: 10 -16 | AQ4: 17-23 | AR4: 24-30 | AT4: 8 -14 | AU4: 15 -21 | AV4: 22-28 | AX4: 5-11 | AY4: 12-18 | AZ4: 19-25 | BA4: 26-1
B5: 1 | C5: 2 | D5: 3 | E5: 4 | F5: 5 | G5: 6 | H5: 7 | I5: 8 | J5: 9 | K5: 10 | L5: 11 | M5: 12 | N5: 13 | O5: 14 | P5: 15 | Q5: 16 | R5: 17 | S5: 18 | T5: 19 | U5: 20 | V5: 21 | W5: 22 | X5: 23 | Y5: 24 | Z5: 25 | AA5: 26 | AB5: 27 | AC5: 28 | AD5: 29 | AE5: 30 | AF5: 31 | AG5: 32 | AH5: 33 | AI5: 34 | AJ5: 35 | AK5: 36 | AL5: 37 | AM5: 38 | AN5: 39 | AO5: 40 | AP5: 41 | AQ5: 42 | AR5: 43 | AS5: 44 | AT5: 45 | AU5: 46 | AV5: 47 | AW5: 48 | AX5: 49 | AY5: 50 | AZ5: 51 | BA5: 52
A7: I
A10: II
A13: III
A16: IV
A19: V
A22: VI
A25: VII
A28: VIII
A31: IX
A34: X
A37: XI
A40: I | S40: = | T40: = | AQ40: :: | AR40: :: | AS40: = | AT40: = | AU40: = | AV40: = | AW40: = | AX40: = | AY40: = | AZ40: = | BA40: =
A47: II | R47: :: | S47: = | T47: = | AN47: :: | AO47: 0 | AP47: 0 | AQ47: 0 | AR47: 8 | AS47: = | AT47: = | AU47: = | AV47: = | AW47: = | AX47: = | AY47: = | AZ47: = | BA47: =
A54: III | Q54: :: | R54: 0 | S54: = | T54: = | AF54: 8 | AG54: 8 | AH54: 8 | AI54: X | AJ54: X | AK54: X | AL54: X | AM54: D | AN54: D | AO54: D | AP54: D | AQ54: III | AR54: III | AS54: * | AT54: * | AU54: * | AV54: * | AW54: * | AX54: * | AY54: * | AZ54: * | BA54: *
A61: IV | B61: * | C61: * | D61: * | E61: * | F61: * | G61: * | H61: * | I61: * | J61: * | K61: * | L61: * | M61: * | N61: * | O61: * | P61: * | Q61: * | R61: * | S61: * | T61: * | U61: * | V61: * | W61: * | X61: * | Y61: * | Z61: * | AA61: * | AB61: * | AC61: * | AD61: * | AE61: * | AF61: * | AG61: * | AH61: * | AI61: * | AJ61: * | AK61: * | AL61: * | AM61: * | AN61: * | AO61: * | AP61: * | AQ61: * | AR61: * | AS61: * | AT61: * | AU61: * | AV61: * | AW61: * | AX61: * | AY61: * | AZ61: * | BA61: *
A68: V | B68: * | C68: * | D68: * | E68: * | F68: * | G68: * | H68: * | I68: * | J68: * | K68: * | L68: * | M68: * | N68: * | O68: * | P68: * | Q68: * | R68: * | S68: * | T68: * | U68: * | V68: * | W68: * | X68: * | Y68: * | Z68: * | AA68: * | AB68: * | AC68: * | AD68: * | AE68: * | AF68: * | AG68: * | AH68: * | AI68: * | AJ68: * | AK68: * | AL68: * | AM68: * | AN68: * | AO68: * | AP68: * | AQ68: * | AR68: * | AS68: * | AT68: * | AU68: * | AV68: * | AW68: * | AX68: * | AY68: * | AZ68: * | BA68: *
A75: VI | B75: * | C75: * | D75: * | E75: * | F75: * | G75: * | H75: * | I75: * | J75: * | K75: * | L75: * | M75: * | N75: * | O75: * | P75: * | Q75: * | R75: * | S75: * | T75: * | U75: * | V75: * | W75: * | X75: * | Y75: * | Z75: * | AA75: * | AB75: * | AC75: * | AD75: * | AE75: * | AF75: * | AG75: * | AH75: * | AI75: * | AJ75: * | AK75: * | AL75: * | AM75: * | AN75: * | AO75: * | AP75: * | AQ75: * | AR75: * | AS75: * | AT75: * | AU75: * | AV75: * | AW75: * | AX75: * | AY75: * | AZ75: * | BA75: *
A82: VII | B82: * | C82: * | D82: * | E82: * | F82: * | G82: * | H82: * | I82: * | J82: * | K82: * | L82: * | M82: * | N82: * | O82: * | P82: * | Q82: * | R82: * | S82: * | T82: * | U82: * | V82: * | W82: * | X82: * | Y82: * | Z82: * | AA82: * | AB82: * | AC82: * | AD82: * | AE82: * | AF82: * | AG82: * | AH82: * | AI82: * | AJ82: * | AK82: * | AL82: * | AM82: * | AN82: * | AO82: * | AP82: * | AQ82: * | AR82: * | AS82: * | AT82: * | AU82: * | AV82: * | AW82: * | AX82: * | AY82: * | AZ82: * | BA82: *
A89: VIII | B89: * | C89: * | D89: * | E89: * | F89: * | G89: * | H89: * | I89: * | J89: * | K89: * | L89: * | M89: * | N89: * | O89: * | P89: * | Q89: * | R89: * | S89: * | T89: * | U89: * | V89: * | W89: * | X89: * | Y89: * | Z89: * | AA89: * | AB89: * | AC89: * | AD89: * | AE89: * | AF89: * | AG89: * | AH89: * | AI89: * | AJ89: * | AK89: * | AL89: * | AM89: * | AN89: * | AO89: * | AP89: * | AQ89: * | AR89: * | AS89: * | AT89: * | AU89: * | AV89: * | AW89: * | AX89: * | AY89: * | AZ89: * | BA89: *
A96: IX | B96: * | C96: * | D96: * | E96: * | F96: * | G96: * | H96: * | I96: * | J96: * | K96: * | L96: * | M96: * | N96: * | O96: * | P96: * | Q96: * | R96: * | S96: * | T96: * | U96: * | V96: * | W96: * | X96: * | Y96: * | Z96: * | AA96: * | AB96: * | AC96: * | AD96: * | AE96: * | AF96: * | AG96: * | AH96: * | AI96: * | AJ96: * | AK96: * | AL96: * | AM96: * | AN96: * | AO96: * | AP96: * | AQ96: * | AR96: * | AS96: * | AT96: * | AU96: * | AV96: * | AW96: * | AX96: * | AY96: * | AZ96: * | BA96: *
A103: X | B103: * | C103: * | D103: * | E103: * | F103: * | G103: * | H103: * | I103: * | J103: * | K103: * | L103: * | M103: * | N103: * | O103: * | P103: * | Q103: * | R103: * | S103: * | T103: * | U103: * | V103: * | W103: * | X103: * | Y103: * | Z103: * | AA103: * | AB103: * | AC103: * | AD103: * | AE103: * | AF103: * | AG103: * | AH103: * | AI103: * | AJ103: * | AK103: * | AL103: * | AM103: * | AN103: * | AO103: * | AP103: * | AQ103: * | AR103: * | AS103: * | AT103: * | AU103: * | AV103: * | AW103: * | AX103: * | AY103: * | AZ103: * | BA103: *
A110: XI | B110: * | C110: * | D110: * | E110: * | F110: * | G110: * | H110: * | I110: * | J110: * | K110: * | L110: * | M110: * | N110: * | O110: * | P110: * | Q110: * | R110: * | S110: * | T110: * | U110: * | V110: * | W110: * | X110: * | Y110: * | Z110: * | AA110: * | AB110: * | AC110: * | AD110: * | AE110: * | AF110: * | AG110: * | AH110: * | AI110: * | AJ110: * | AK110: * | AL110: * | AM110: * | AN110: * | AO110: * | AP110: * | AQ110: * | AR110: * | AS110: * | AT110: * | AU110: * | AV110: * | AW110: * | AX110: * | AY110: * | AZ110: * | BA110: *
A117: Обозначения: | H117: Обучение по дисциплинам и междисциплинарным курсам | Y117: 0 | Z117: Учебная практика | AR117: D | AS117: Подготовка к государственной итоговой аттестации
G119: :: | H119: Промежуточная аттестация | Y119: 8 | Z119: Производственная практика (по профилю специальности) | AR119: III | AS119: Государственная итоговая аттестация
G121: = | H121: Каникулы | Y121: X | Z121: Производственная практика (преддипломная) | AR121: * | AS121: Неделя отсутствует
A123: 2 Сводные данные по бюджету времени
A125: Курс | B125: Обучение по дисциплинам и междисциплинарным курсам | T125: Промежуточная аттестация | AC125: Практики | AX125: ГИА | BD125: Каникулы | BG125: Всего | BJ125: Студентов | BN125: Групп
AC126: Учебная практика | AJ126: Производственная практика (по профилю специальности) | AQ126: Производственная практика (преддипломная) | AX126: Подго- товка | BA126: Прове- дение
B127: Всего | H127: 1 сем | N127: 2 сем | T127: Всего | W127: 1 сем | Z127: 2 сем | AC127: Всего | AF127: 1 сем | AH127: 2 сем | AJ127: Всего | AM127: 1 сем | AO127: 2 сем | AQ127: Всего | AT127: 1 сем | AV127: 2 сем
B128: нед. | E128: час. обяз. уч. занятий | H128: нед. | K128: час. обяз. уч. занятий | N128: нед. | Q128: час. обяз. уч. занятий | T128: нед. | W128: нед. | Z128: нед. | AC128: нед. | AF128: нед. | AH128: нед. | AJ128: нед. | AM128: нед. | AO128: нед. | AQ128: нед. | AT128: нед. | AV128: нед. | AX128: нед. | BA128: нед. | BD128: нед. | BG128: нед.
A129: I | B129: 39 | E129: 1404 | H129: 17 | K129: 612 | N129: 22 | Q129: 792 | T129: 2 | Z129: 2 | BD129: 11 | BG129: 52
A130: II | B130: 35 | E130: 1260 | H130: 16 | K130: 576 | N130: 19 | Q130: 684 | T130: 2 | W130: 1 | Z130: 1 | AC130: 3 | AH130: 3 | AJ130: 1 | AO130: 1 | BD130: 11 | BG130: 52
A131: III | B131: 26 | E131: 936 | H131: 15 | K131: 540 | N131: 11 | Q131: 396 | T131: 1 | W131: 1 | AC131: 1 | AF131: 1 | AJ131: 3 | AO131: 3 | AQ131: 4 | AV131: 4 | AX131: 4 | BA131: 2 | BD131: 2 | BG131: 43
A132: IV
A133: V
A134: VI
A135: VII
A136: VIII
A137: IX
A138: X
A139: XI
A140: Всего | B140: 100 | E140: 3600 | K140: 1728 | Q140: 1872 | T140: 5 | AC140: 4 | AJ140: 4 | AQ140: 4 | AX140: 4 | BA140: 2 | BD140: 24 | BG140: 147
A142: Курс | B142: Обучение по дисциплинам и междисциплинарным курсам, в том числе учебная практика | T142: Промежуточная аттестация | AC142: Практики | AQ142: ГИА | AW142: Каникулы | AZ142: Всего | BC142: Студентов | BG142: Групп
AC143: Производственная практика (по профилю специальности) | AJ143: Производственная практика (преддипломная) | AQ143: Подго- товка | AT143: Прове- дение
B144: Всего | H144: 1 сем | N144: 2 сем | T144: Всего | W144: 1 сем | Z144: 2 сем | AC144: Всего | AF144: 1 сем | AH144: 2 сем | AJ144: Всего | AM144: 1 сем | AO144: 2 сем
B145: нед. | E145: час. обяз. уч. занятий | H145: нед. | K145: час. обяз. уч. занятий | N145: нед. | Q145: час. обяз. уч. занятий | T145: нед. | W145: нед. | Z145: нед. | AC145: нед. | AF145: нед. | AH145: нед. | AJ145: нед. | AM145: нед. | AO145: нед. | AQ145: нед. | AT145: нед. | AW145: нед. | AZ145: нед.
A146: I
A147: II
A148: III
A149: IV
A150: V
A151: VI
A152: VII
A153: VIII
A154: IX
A155: X
A156: XI
A157: Всего
A159: Курс | B159: Обучение по циклам и разделу "Физическая культура" | T159: Промежуточная аттестация | AC159: Практики | AQ159: ГИА | AT159: Каникулы | AW159: Всего | AZ159: Студентов | BD159: Групп
AC160: Учебная практика (Производственное обучение) | AJ160: Производственная практика | AQ160: Прове- дение
B161: Всего | H161: 1 сем | N161: 2 сем | T161: Всего | W161: 1 сем | Z161: 2 сем | AC161: Всего | AF161: 1 сем | AH161: 2 сем | AJ161: Всего | AM161: 1 сем | AO161: 2 сем
B162: нед. | E162: час. обяз. уч. зан. | H162: нед. | K162: час. обяз. уч. зан. | N162: нед. | Q162: час. обяз. уч. зан. | T162: нед. | W162: нед. | Z162: нед. | AC162: нед. | AF162: нед. | AH162: нед. | AJ162: нед. | AM162: нед. | AO162: нед. | AQ162: нед. | AT162: нед. | AW162: нед.
A163: I
A164: II
A165: III
A166: IV
A167: V
A168: Всего
A170: Курс | B170: Обучение по циклам и разделу "Физическая культура", в том числе учебная практика | T170: Промежуточная аттестация | AC170: Практики | AJ170: ГИА | AM170: Каникулы | AP170: Всего | AS170: Студентов | AW170: Групп
AC171: Производственная практика | AJ171: Прове- дение
B172: Всего | H172: 1 сем | N172: 2 сем | T172: Всего | W172: 1 сем | Z172: 2 сем | AC172: Всего | AF172: 1 сем | AH172: 2 сем
B173: нед. | E173: час. обяз. уч. зан. | H173: нед. | K173: час. обяз. уч. зан. | N173: нед. | Q173: час. обяз. уч. зан. | T173: нед. | W173: нед. | Z173: нед. | AC173: нед. | AF173: нед. | AH173: нед. | AJ173: нед. | AM173: нед. | AP173: нед.
A174: I
A175: II
A176: III
A177: IV
A178: V
A179: Всего

Sheet План
A1: Индекс | B1: Наименование циклов, разделов, дисциплин, профессиональных модулей, МДК, практик | C1: Формы контроля | I1: Учебная нагрузка обучающихся, ч. | T1: Распределение по курсам и семестрам | BN1: ЦМК | BO1: Максимальная учебная нагрузка | BQ1: Обязательная учебная нагрузка
T2: Курс 1 | AH2: Курс 2 | AX2: Курс 3
C3: Экзамены | D3: Зачеты | E3: Диффер. зачеты | F3: Курсовые проекты | G3: Курсовые работы | H3: Другие формы контроля | J3: Максимальная | L3: Самостоятельная | M3: Консультации | O3: Обязательная | T3: Семестр 1 | AA3: Семестр 2 | AH3: Семестр 3 | AP3: Семестр 4 | AX3: Семестр 5 | BF3: Семестр 6
O4: Всего | P4: в том числе | T4: 17 нед | AA4: 22 нед | AH4: 16 нед | AP4: 19 нед | AX4: 15 нед | BF4: 11 нед
P5: Теор. обучение | Q5: Пр. занятия | R5: Лаб. занятия | S5: Курс. проект. | T5: Максим. | U5: Самост. | V5: Обязательная | W5: в том числе | AA5: Максим. | AB5: Самост. | AC5: Обязательная | AD5: в том числе | AH5: Максим. | AI5: Самост. | AJ5: Консульт. | AK5: Обязательная | AL5: в том числе | AP5: Максим. | AQ5: Самост. | AR5: Консульт. | AS5: Обязательная | AT5: в том числе | AX5: Максим. | AY5: Самост. | AZ5: Консульт. | BA5: Обязательная | BB5: в том числе | BF5: Максим. | BG5: Самост. | BH5: Консульт. | BI5: Обязательная | BJ5: в том числе | BO5: Обяз. часть | BP5: Вар. часть | BQ5: Обяз. часть | BR5: Вар. часть
W6: Теор. обучение | X6: Пр. занятия | Y6: Лаб. занятия | Z6: Курс. проект. | AD6: Теор. обучение | AE6: Пр. занятия | AF6: Лаб. занятия | AG6: Курс. проект. | AL6: Теор. обучение | AM6: Пр. занятия | AN6: Лаб. занятия | AO6: Курс. проект. | AT6: Теор. обучение | AU6: Пр. занятия | AV6: Лаб. занятия | AW6: Курс. проект. | BB6: Теор. обучение | BC6: Пр. занятия | BD6: Лаб. занятия | BE6: Курс. проект. | BJ6: Теор. обучение | BK6: Пр. занятия | BL6: Лаб. занятия | BM6: Курс. проект.
A7: 1 | B7: 2 | C7: 3 | D7: 4 | E7: 5 | F7: 6 | G7: 7 | H7: 8 | I7: 9 | J7: 10 | K7: 11 | L7: 12 | M7: 13 | N7: 14 | O7: 15 | P7: 16 | Q7: 17 | R7: 18 | S7: 19 | T7: 20 | U7: 21 | V7: 23 | W7: 24 | X7: 25 | Y7: 26 | Z7: 27 | AA7: 28 | AB7: 29 | AC7: 31 | AD7: 32 | AE7: 33 | AF7: 34 | AG7: 35 | AH7: 36 | AI7: 37 | AJ7: 38 | AK7: 39 | AL7: 40 | AM7: 41 | AN7: 42 | AO7: 43 | AP7: 44 | AQ7: 45 | AR7: 46 | AS7: 47 | AT7: 48 | AU7: 49 | AV7: 50 | AW7: 51 | AX7: 52 | AY7: 53 | AZ7: 54 | BA7: 55 | BB7: 56 | BC7: 57 | BD7: 58 | BE7: 59 | BF7: 60 | BG7: 61 | BH7: 62 | BI7: 63 | BJ7: 64 | BK7: 65 | BL7: 66 | BM7: 67 | BN7: 196 | BO7: 197 | BP7: 198 | BQ7: 199 | BR7: 200
B9: Итого час/нед (с учетом консультаций в период обучения по циклам) | T9: 54 | V9: 36 | AA9: 54 | AC9: 36 | AH9: 54 | AK9: 36 | AP9: 54 | AS9: 36 | AX9: 54 | BA9: 36 | BF9: 54 | BI9: 36
A10: ОП | B10: ОБЩЕОБРАЗОВАТЕЛЬНАЯ ПОДГОТОВКА | C10: 6 | E10: 12 | H10: 6 | J10: =J16 -> 2052 | K10: =K16 -> 0 | L10: 648 | M10: 0 | N10: 0 | O10: 1404 | P10: 636 | Q10: 768 | T10: 834.4 | U10: 256.4 | V10: 578 | W10: 306 | X10: 272 | AA10: 1169.6 | AB10: 343.6 | AC10: 826 | AD10: 330 | AE10: 496
A12: НО | B12: Начальное общее образование
A14: ОО | B14: Основное общее образование
A16: СО | B16: Среднее (полное) общее образование | C16: 6 | E16: 12 | H16: 6 | J16: =J18+J30 -> 2052 | K16: =K18+K30 -> 0 | L16: 648 | M16: 0 | N16: 0 | O16: 1404 | P16: 636 | Q16: 768 | T16: 834.4 | U16: 256.4 | V16: 578 | W16: 306 | X16: 272 | Y16: 0 | Z16: 0 | AA16: 1169.6 | AB16: 343.6 | AC16: 826 | AD16: 330 | AE16: 496
A18: БД | B18: Базовые дисциплины | C18: =COUNT(C19:C28) -> 5 | D18: 0 | E18: 6 | F18: 0 | G18: 0 | H18: 3 | J18: =SUM(J19:J28) -> 1599 | K18: =SUM(K19:K28) -> 0 | L18: 497 | M18: 0 | N18: 0 | O18: 1102 | P18: 507 | Q18: 595 | T18: 579.4 | U18: 171.4 | V18: 408 | W18: 221 | X18: 187 | AA18: 971.6 | AB18: 277.6 | AC18: 694 | AD18: 286 | AE18: 408
A19: БД.01 | B19: Русский язык | C19: 1.2 | J19: =L19+O19 -> 109.2 | L19: =U19+AB19 -> 31.2 | O19: 78 | P19: 39 | Q19: 39 | T19: =U19+V19 -> 47.6 | U19: =V19*40% -> 13.6 | V19: =SUM(W19:X19) -> 34 | W19: 17 | X19: 17 | AA19: =AB19+AC19 -> 61.6 | AB19: =AC19*40% -> 17.6 | AC19: 44 | AD19: 22 | AE19: 22
A20: БД.02 | B20: Литература | C20: 1.2 | J20: 167 | L20: 55 | O20: 112 | P20: 73 | Q20: 39 | T20: 95.2 | U20: =V20*40% -> 27.2 | V20: =SUM(W20:X20) -> 68 | W20: 51 | X20: 17 | AA20: 61.6 | AB20: =AC20*40% -> 17.6 | AC20: 44 | AD20: 22 | AE20: 22
A21: БД.03 | B21: История | C21: 1.2 | J21: 167 | L21: 55 | O21: 112 | P21: 56 | Q21: 56 | T21: 95.2 | U21: 27.2 | V21: 68 | W21: 34 | X21: 34 | AA21: 61.6 | AB21: 17.6 | AC21: 44 | AD21: 22 | AE21: 22
A22: БД.04 | B22: Иностранный язык | E22: 2 | H22: 1 | J22: 182 | L22: 60 | O22: =P22+Q22 -> 122 | P22: =W22+AD22 -> 39 | Q22: 83 | T22: 47.6 | U22: 13.6 | V22: 34 | W22: 17 | X22: 17 | AA22: 123.2 | AB22: 35.2 | AC22: =AD22+AE22 -> 88 | AD22: 22 | AE22: 66
A23: БД.05 | B23: Обществознание | C23: 2 | H23: 1 | J23: 167 | L23: 55 | O23: 112 | P23: 56 | Q23: 56 | T23: 95.2 | U23: 27.2 | V23: 68 | W23: 34 | X23: 34 | AA23: 61.6 | AB23: 17.6 | AC23: 44 | AD23: 22 | AE23: 22
A24: БД.06 | B24: Математика | C24: 2 | E24: 1 | J24: 342 | L24: 108 | O24: 234 | P24: 95 | Q24: 139 | T24: 151 | U24: 49 | V24: 102 | W24: 51 | X24: 51 | AA24: 184.8 | AB24: 52.8 | AC24: 132 | AD24: 44 | AE24: 88
A25: БД.07 | B25: Итория Черноморского побережья | E25: 2 | J25: 123.2 | L25: 35.2 | O25: 88 | P25: =W25+AD25 -> 44 | Q25: 44 | V25: 0 | AA25: 123.2 | AB25: 35.2 | AC25: 88 | AD25: 44 | AE25: 44
A26: БД.08 | B26: Физическая культура | E26: 1 | H26: 2 | J26: 170.8 | L26: 48.8 | O26: 122 | P26: =W26+AD26 -> 39 | Q26: =X26+AE26 -> 83 | T26: 47.6 | U26: 13.6 | V26: 34 | W26: 17 | X26: 17 | AA26: 123.2 | AB26: 35.2 | AC26: 88 | AD26: 22 | AE26: 66
A27: БД.09 | B27: Основы безопасности жизнедеятельности | E27: 2 | J27: 109.2 | L27: 31.2 | O27: 78 | P27: =W27+AD27 -> 44 | Q27: =X27+AE27 -> 34 | AA27: 109.2 | AB27: 31.2 | AC27: 78 | AD27: 44 | AE27: 34
A28: БД.10 | B28: Астрономия | E28: 2 | J28: 61.6 | L28: 17.6 | O28: 44 | P28: 22 | Q28: 22 | AA28: 61.6 | AB28: 17.6 | AC28: 44 | AD28: 22 | AE28: 22
A30: ПД | B30: Профильные дисциплины | E30: =COUNT(E31:E33) -> 3 | F30: =COUNT(F31:F33) -> 0 | G30: =COUNT(G31:G33) -> 0 | H30: =COUNT(H31:H33) -> 2 | J30: =SUM(J31:J33) -> 453 | L30: =SUM(L31:L33) -> 151 | M30: 0 | N30: 0 | O30: 302 | P30: 129 | Q30: 173 | R30: 0 | S30: 0 | T30: 255 | U30: 85 | V30: 170 | W30: 85 | X30: 85 | Y30: 0 | Z30: 0 | AA30: 198 | AB30: 66 | AC30: 132 | AD30: 44 | AE30: 88
A31: ПД.01 | B31: Информатика и ИКТ | E31: 2 | H31: 1 | J31: =L31+O31 -> 168 | L31: =O31*50% -> 56 | O31: =P31+Q31 -> 112 | P31: =W31+AD31 -> 34 | Q31: =X31+AE31 -> 78 | T31: =U31+V31 -> 102 | U31: =V31*50% -> 34 | V31: =W31+X31 -> 68 | W31: 34 | X31: 34 | AA31: =AB31+AC31 -> 66 | AB31: =AC31*50% -> 22 | AC31: =AD31+AE31 -> 44 | AE31: 44
A32: ПД.02 | B32: Физика | E32: 2 | H32: 1 | J32: =L32+O32 -> 183 | L32: =O32*50% -> 61 | O32: =P32+Q32 -> 122 | P32: =W32+AD32 -> 61 | Q32: =X32+AE32 -> 61 | T32: =U32+V32 -> 51 | U32: =V32*50% -> 17 | V32: =W32+X32 -> 34 | W32: 17 | X32: 17 | AA32: =AB32+AC32 -> 132 | AB32: =AC32*50% -> 44 | AC32: =AD32+AE32 -> 88 | AD32: 44 | AE32: 44
A33: ПД.03 | B33: География | E33: 1 | J33: =L33+O33 -> 102 | L33: =O33*50% -> 34 | O33: 68 | P33: 34 | Q33: 34 | T33: =U33+V33 -> 102 | U33: =V33*50% -> 34 | V33: =W33+X33 -> 68 | W33: 34 | X33: 34
BO36: 68,9% | BP36: 31,1% | BQ36: 68,9% | BR36: 31,1%
A37: ПП | B37: ПРОФЕССИОНАЛЬНАЯ ПОДГОТОВКА | C37: 16 | D37: 7 | E37: 17 | H37: 8 | J37: =J39+J46+J50 -> 3301 | K37: =K39+K46+K50 -> 0 | L37: 1163 | M37: 0 | N37: 0 | O37: 2212 | P37: 887 | Q37: 1351 | R37: 0 | S37: 20 | AH37: 943 | AI37: 324 | AJ37: 0 | AK37: 619 | AL37: 252 | AM37: 367 | AN37: 0 | AO37: 0 | AP37: 1035.5 | AQ37: 354.5 | AR37: 0 | AS37: 681 | AT37: 273 | AU37: 408 | AV37: 0 | AW37: 0 | AX37: 835 | AY37: 283 | AZ37: 0 | BA37: 552 | BB37: 214 | BC37: 318 | BD37: 0 | BE37: 20 | BF37: 565 | BG37: 193 | BH37: 0 | BI37: 372 | BJ37: 131 | BK37: 241 | BL37: 0 | BM37: 0 | BN37: 0 | BO37: =BO39+BO46+BO50 -> 2268 | BP37: =BP39+BP46+BP50 -> 1026 | BQ37: =BQ39+BQ46+BQ50 -> 1512 | BR37: =BR39+BR46+BR50 -> 684
A39: ОГСЭ | B39: Общий гуманитарный и социально-экономический цикл | D39: 5 | E39: =COUNT(E40:E44) -> 5 | H39: 2 | J39: =SUM(J40:J44) -> 689 | K39: 0 | L39: 266 | M39: 0 | N39: 0 | O39: 423 | P39: =SUM(P40:P44) -> 96 | Q39: 327 | R39: 0 | S39: 0 | AH39: 352 | AI39: 128 | AJ39: 0 | AK39: 224 | AL39: 96 | AM39: 128 | AP39: 161.5 | AQ39: 66.5 | AR39: 0 | AS39: 95 | AT39: 0 | AU39: 95 | AV39: 0 | AW39: 0 | AX39: 105 | AY39: 45 | AZ39: 0 | BA39: 60 | BB39: 0 | BC39: 60 | BD39: 0 | BE39: 0 | BF39: 77 | BG39: 33 | BH39: 0 | BI39: 44 | BJ39: 0 | BK39: 44 | BO39: =SUM(BO40:BO44) -> 510 | BP39: =SUM(BP40:BP44) -> 179 | BQ39: =SUM(BQ40:BQ44) -> 340 | BR39: =SUM(BR40:BR44) -> 77
A40: ОГСЭ.01 | B40: Основы философии | E40: 3 | J40: =SUM(L40:O40) -> 68 | L40: 20 | O40: =AK40+AS40+BA40+BI40 -> 48 | P40: 32 | Q40: 16 | AH40: =AI40+AK40 -> 72 | AI40: =AK40*50% -> 24 | AK40: 48 | AL40: 32 | AM40: 16 | BO40: 62 | BP40: 6 | BQ40: 48
A41: ОГСЭ.02 | B41: История | E41: 3 | J41: =SUM(L41:O41) -> 70 | L41: 22 | O41: 48 | P41: 32 | Q41: 16 | AH41: =AI41+AK41 -> 72 | AI41: =AK41*50% -> 24 | AK41: 48 | AL41: 32 | AM41: 16 | BO41: 62 | BP41: 8 | BQ41: 48
A42: ОГСЭ.03 | B42: Иностранный язык | C42: 6 | E42: 5 | H42: 3.4 | J42: =SUM(L42:O42) -> 211 | L42: 70 | O42: 141 | P42: 0 | Q42: 141 | AH42: =AI42+AK42 -> 48 | AI42: =AK42*50% -> 16 | AK42: 32 | AM42: 32 | AP42: =AQ42+AS42 -> 85.5 | AQ42: =AS42*50% -> 28.5 | AS42: 57 | AU42: 57 | AX42: =AY42+BA42 -> 45 | AY42: =BA42*50% -> 15 | BA42: 30 | BC42: 30 | BF42: =BG42+BI42 -> 33 | BG42: =BI42*50% -> 11 | BI42: 22 | BK42: 22 | BO42: 142 | BP42: 69 | BQ42: 122 | BR42: 13
A43: ОГСЭВ.04 | B43: Русский язык и культура речи | E43: 3 | J43: =SUM(L43:O43) -> 96 | L43: 32 | O43: 64 | P43: 32 | Q43: 32 | AH43: =AI43+AK43 -> 96 | AI43: =AK43*50% -> 32 | AK43: 64 | AL43: 32 | AM43: 32 | BP43: 96 | BR43: 64
A44: ОГСЭ.05 | B44: Физическая культура | C44: 6 | E44: 4.5 | H44: 3 | J44: =SUM(L44:O44) -> 244 | L44: 122 | O44: 122 | P44: 0 | Q44: 122 | AH44: =AI44+AK44 -> 64 | AI44: 32 | AK44: 32 | AM44: 32 | AP44: =AQ44+AS44 -> 76 | AQ44: 38 | AS44: 38 | AU44: 38 | AX44: =AY44+BA44 -> 60 | AY44: 30 | BA44: 30 | BC44: 30 | BF44: =BG44+BI44 -> 44 | BG44: 22 | BI44: 22 | BK44: 22 | BO44: 244 | BQ44: 122
A46: ЕН | B46: Математический и общий естественнонаучный цикл | E46: 1 | H46: 1 | J46: =SUM(J47:J49) -> 201 | K46: =SUM(K47:K49) -> 0 | L46: 69 | M46: 0 | N46: 0 | O46: 130 | P46: 65 | Q46: 65 | R46: 0 | S46: 0 | T46: 47.6 | U46: 13.6 | V46: 34 | W46: 17 | X46: 17 | Y46: 0 | Z46: 0 | AA46: 0 | AB46: 0 | AC46: 0 | AD46: 0 | AE46: 0 | AF46: 0 | AG46: 0 | AH46: 150 | AI46: 54 | AJ46: 0 | AK46: 96 | AL46: 48 | AM46: 48 | AN46: 0 | AO46: 0 | AP46: 0 | AQ46: 0 | AR46: 0 | AS46: 0 | AT46: 0 | AU46: 0 | AV46: 0 | AW46: 0 | BO46: =SUM(BO47:BO49) -> 150 | BP46: =SUM(BP47:BP49) -> 51 | BQ46: =SUM(BQ47:BQ49) -> 100 | BR46: =SUM(BR47:BR49) -> 30
A47: ЕН.01 | B47: Математика | E47: 3 | J47: =AH47+AP47+AX47+BF47 -> 100 | L47: =AI47+AQ47+AY47+BG47 -> 36 | O47: 64 | P47: 32 | Q47: 32 | AH47: =AI47+AK47 -> 100 | AI47: 36 | AK47: 64 | AL47: 32 | AM47: 32 | BO47: 100 | BQ47: 64
A48: ЕН.02 | B48: Информатика | E48: 3 | J48: =AH48+AP48+AX48+BF48 -> 50 | L48: =O48*50% -> 16 | O48: =AK48+AS48+BA48+BI48 -> 32 | P48: =AL48 -> 16 | Q48: =AM48 -> 16 | AH48: =AI48+AK48 -> 50 | AI48: 18 | AK48: 32 | AL48: 16 | AM48: 16 | BO48: 50 | BQ48: 32
A49: ЕНВ.03 | B49: Экономика | E49: 1 | J49: =L49+O49 -> 51 | L49: 17 | O49: =P49+Q49 -> 34 | P49: =W49+AD49 -> 17 | Q49: =X49+AE49 -> 17 | T49: =U49+V49 -> 47.6 | U49: =V49*40% -> 13.6 | V49: =SUM(W49:X49) -> 34 | W49: 17 | X49: 17 | BP49: 51 | BQ49: 4 | BR49: 30
A50: П | B50: Профессиональный цикл | C50: 15 | D50: 2 | E50: 11 | H50: 5 | J50: =J52+J71 -> 2411 | L50: 828 | O50: =O52+O71 -> 1659 | P50: 726 | Q50: 959 | S50: 20 | AH50: 441 | AI50: 142 | AK50: 299 | AL50: 108 | AM50: 191 | AP50: 874 | AQ50: 288 | AS50: 586 | AT50: 273 | AU50: 313 | AX50: 730 | AY50: 238 | BA50: 492 | BB50: 214 | BC50: 258 | BE50: 20 | BF50: 488 | BG50: 160 | BI50: 328 | BJ50: 131 | BK50: 197 | BO50: =BO52+BO71 -> 1608 | BP50: =BP52+BP71 -> 796 | BQ50: =BQ52+BQ71 -> 1072 | BR50: =BR52+BR71 -> 577
A52: ОП | B52: Общепрофессиональные дисциплины | C52: 9 | D52: 2 | E52: 5 | H52: 2 | J52: =L52+O52 -> 1884 | K52: =SUM(K53:K70) -> 0 | L52: 591 | M52: 0 | N52: 0 | O52: 1293 | P52: 648 | Q52: 644 | R52: =SUM(R53:R67) -> 0 | S52: 0 | T52: 0 | U52: 0 | V52: 0 | W52: 0 | X52: 0 | Y52: 0 | Z52: 0 | AA52: 0 | AB52: 0 | AC52: 0 | AD52: 0 | AE52: 0 | AF52: 0 | AG52: 0 | AH52: 287 | AI52: 95 | AJ52: 0 | AK52: 192 | AL52: 96 | AM52: 96 | AN52: 0 | AO52: 0 | AP52: =SUM(AP53:AP67) -> 475 | AQ52: 141 | AR52: 0 | AS52: 334 | AT52: 171 | AU52: 163 | AV52: 0 | AW52: 0 | AX52: 410 | AY52: 110 | AZ52: 0 | BA52: 300 | BB52: 150 | BC52: 150 | BD52: 0 | BE52: 0 | BF52: 375 | BG52: 124 | BH52: 0 | BI52: 251 | BJ52: 123 | BK52: 127 | BO52: =SUM(BO53:BO70) -> 1144 | BP52: =SUM(BP53:BP70) -> 733 | BQ52: =SUM(BQ53:BQ70) -> 762 | BR52: =SUM(BR53:BR70) -> 521
A53: ОП.01 | B53: Теория государства и права | C53: 3 | J53: =L53+O53 -> 100 | L53: =AI53+AQ53+AY53+BG53 -> 36 | O53: =AK53+AS53+BA53+BI53 -> 64 | P53: =AL53+AT53+BB53+BJ53 -> 32 | Q53: =AM53+AU53+BC53+BK53 -> 32 | AH53: =AI53+AK53 -> 100 | AI53: 36 | AK53: =SUM(AL53:AM53) -> 64 | AL53: 32 | AM53: 32 | AS53: =AT53+AU53 -> 0 | BO53: 88 | BP53: 12 | BQ53: 32 | BR53: 32
A54: ОП.02 | B54: Конституционное право | C54: 3 | J54: 100 | L54: 36 | O54: 64 | P54: 32 | Q54: 32 | AH54: =AI54+AK54 -> 100 | AI54: 36 | AK54: =SUM(AL54:AM54) -> 64 | AL54: 32 | AM54: 32 | AS54: =AT54+AU54 -> 0 | BO54: 77 | BP54: 23 | BQ54: 64
A55: ОП.03 | B55: Административное право | C55: 3 | J55: 87 | L55: 23 | O55: 64 | P55: 32 | Q55: 32 | AH55: 87 | AI55: 23 | AK55: 64 | AL55: 32 | AM55: 32 | AS55: 0 | BO55: 67 | BP55: 20 | BQ55: 64
A56: ОП.04 | B56: Основы экологического права | E56: 5 | J56: 80 | L56: 20 | O56: 60 | P56: 30 | Q56: 30 | AS56: 0 | AX56: =AY56+BA56 -> 80 | AY56: 20 | BA56: 60 | BB56: 30 | BC56: 30 | BO56: 48 | BP56: 32 | BQ56: 30 | BR56: 30
A57: ОП.05 | B57: Трудовое право | E57: 5 | H57: 4 | J57: 206 | L57: 70 | O57: 136 | P57: 68 | Q57: 68 | AH57: 0 | AK57: 0 | AP57: =AQ57+AS57 -> 104 | AQ57: 28 | AS57: 76 | AT57: 38 | AU57: 38 | AX57: =AY57+BA57 -> 80 | AY57: 20 | BA57: 60 | BB57: 30 | BC57: 30 | BO57: 140 | BP57: 66 | BQ57: 136
A58: ОП.06 | B58: Гражданское право | C58: 5 | H58: 4 | J58: 206 | L58: 70 | O58: 136 | P58: 68 | Q58: 68 | AH58: 0 | AK58: 0 | AP58: =AQ58+AS58 -> 104 | AQ58: 28 | AS58: 76 | AT58: 38 | AU58: 38 | AX58: =AY58+BA58 -> 80 | AY58: 20 | BA58: 60 | BB58: 30 | BC58: 30 | BO58: 143 | BP58: 63 | BQ58: 100 | BR58: 36
A59: ОП.07 | B59: Семейное право | E59: 6 | J59: 66 | L59: 22 | O59: 44 | P59: 22 | Q59: 22 | AH59: 0 | AK59: 0 | AS59: 0 | BF59: =BG59+BI59 -> 66 | BG59: =BI59*50% -> 22 | BI59: 44 | BJ59: 22 | BK59: 22 | BO59: 66 | BQ59: 38 | BR59: 6
A60: ОП.08 | B60: Гражданский процесс | C60: 6 | E60: 5 | J60: 145 | L60: 41 | O60: 104 | P60: 52 | Q60: 52 | AH60: 0 | AK60: 0 | AS60: 0 | AX60: 80 | AY60: 20 | BA60: 60 | BB60: 30 | BC60: 30 | BF60: =BG60+BI60 -> 65 | BG60: 21 | BI60: 44 | BJ60: 22 | BK60: 22 | BO60: 88 | BP60: 50 | BQ60: 52 | BR60: 52
A61: ОП.09 | B61: Страховое дело | H61: 6 | J61: 79 | L61: 34 | O61: 45 | P61: 22 | Q61: 22 | AH61: 0 | AK61: 0 | AS61: 0 | BF61: =BG61+BI61 -> 79 | BG61: 34 | BI61: 45 | BJ61: 22 | BK61: 22 | BO61: 63 | BP61: 16 | BQ61: 45
A62: ОП.10 | B62: Статистика | C62: 4 | J62: 104 | L62: 36 | O62: 68 | P62: 38 | Q62: 30 | AH62: 0 | AK62: 0 | AP62: =AQ62+AS62 -> 96 | AQ62: 28 | AS62: =AT62+AU62 -> 68 | AT62: 38 | AU62: 30 | BO62: 71 | BP62: 33 | BQ62: 21 | BR62: 47
A63: ОП.11 | B63: Экономика организации | E63: 5 | J63: 90 | L63: 30 | O63: 60 | P63: 30 | Q63: 30 | AS63: 0 | AX63: 90 | AY63: 30 | BA63: 60 | BB63: 30 | BC63: 30 | BO63: 40 | BP63: 50 | BQ63: 40 | BR63: 20
A64: ОП.12 | B64: Менеджмент | C64: 4 | J64: 114 | L64: 38 | O64: 76 | P64: 38 | Q64: 38 | AH64: 0 | AK64: 0 | AP64: =AQ64+AS64 -> 114 | AQ64: =AS64*50% -> 38 | AS64: 76 | AT64: 38 | AU64: 38 | BO64: 61 | BP64: 53 | BQ64: 12 | BR64: 54
A65: ОП.13 | B65: Документационное обеспечение управления | H65: 6 | J65: 65 | L65: 15 | O65: 50 | P65: 22 | Q65: 28 | AH65: 0 | AK65: 0 | BF65: =BG65+BI65 -> 65 | BG65: 15 | BI65: 50 | BJ65: 22 | BK65: 28 | BO65: 45 | BP65: 20 | BQ65: 30 | BR65: 20
A66: ОП.14 | B66: Информационные технологии в профессиональной деятельности | E66: 4 | J66: 57 | L66: 19 | O66: 38 | P66: 19 | Q66: 19 | AH66: 0 | AK66: 0 | AP66: =AQ66+AS66 -> 57 | AQ66: =AS66*50% -> 19 | AS66: 38 | AT66: 19 | AU66: 19 | BO66: 57 | BQ66: 38
A67: ОП.16 | B67: Безопасность жизнедеятельности | E67: 6 | J67: 100 | L67: 32 | O67: 68 | P67: 35 | Q67: 33 | AH67: 0 | AK67: 0 | AS67: 0 | BF67: 100 | BG67: 32 | BI67: 68 | BJ67: 35 | BK67: 33 | BO67: 90 | BP67: 10 | BQ67: 60 | BR67: 8
A68: ОПВ.01 | B68: Уголовное право | C68: 5 | E68: 4 | J68: =L68+O68 -> 145 | L68: 37 | O68: 108 | P68: 54 | Q68: 54 | AH68: 45 | AI68: 13 | AK68: 32 | AL68: 16 | AM68: 16 | AP68: 100 | AQ68: 24 | AS68: 76 | AT68: 38 | AU68: 38 | BP68: 145 | BR68: 108
A69: ОПВ.02 | B69: Уголовный процесс | C69: 5 | J69: 95 | L69: 19 | O69: 76 | P69: 38 | Q69: 38 | AP69: 100 | AQ69: 24 | AS69: 76 | AT69: 38 | AU69: 38 | BP69: 95 | BR69: 76
A70: ОПВ.03 | B70: Право | E70: 3 | J70: 45 | L70: 13 | O70: =P70+Q70 -> 32 | P70: 16 | Q70: 16 | AH70: 45 | AI70: 13 | AK70: 32 | AL70: 16 | AM70: 16 | AS70: 0 | BP70: 45 | BR70: 32
A71: П+57:71М | B71: Профессиональные модули | C71: 6 | E71: 6 | H71: 3 | J71: =J73+J81 -> 527 | K71: 0 | L71: 212 | M71: 0 | N71: 0 | O71: 366 | P71: 221 | Q71: 221 | R71: 0 | S71: 20 | AN71: 0 | AO71: 0 | AP71: 98 | AQ71: 30 | AR71: 0 | AS71: 76 | AT71: 38 | AU71: 38 | AV71: 0 | AW71: 0 | AX71: 225 | AY71: 60 | AZ71: 0 | BA71: 180 | BB71: 90 | BC71: 90 | BD71: 0 | BE71: 20 | BO71: =BO73+BO81 -> 464 | BP71: =BP73+BP81 -> 63 | BQ71: =BQ73+BQ81 -> 310 | BR71: =BR73+BR81 -> 56
A73: ПМ.01 | B73: Обеспечение реализации прав граждан в сфере пенсионного обеспечения и социальной защиты | C73: 3 | E73: 3 | H73: 2 | J73: =SUM(J75:J76) -> 337 | L73: 148 | O73: =SUM(O75:O76) -> 240 | P73: 158 | Q73: 158 | S73: 20 | AP73: =SUM(AP75:AP76) -> 98 | AQ73: 30 | AR73: 0 | AS73: 76 | AT73: 38 | AU73: 38 | AX73: =SUM(AX75:AX76) -> 150 | AY73: 45 | AZ73: 0 | BA73: 120 | BB73: 60 | BC73: 60 | BE73: =SUM(BE75:BE76) -> 20 | BO73: =SUM(BO75:BO76) -> 337 | BP73: =SUM(BP75:BP76) -> 0 | BQ73: =SUM(BQ75:BQ76) -> 202 | BR73: =SUM(BR75:BR76) -> 38
A75: МДК.01.01 | B75: Право социального обеспечения | C75: 6 | E75: 4.5 | J75: =SUM(L75:O75) -> 262 | L75: 82 | O75: 180 | P75: 90 | Q75: 90 | S75: 20 | AP75: 98 | AQ75: 30 | AS75: 76 | AT75: 38 | AU75: 38 | AX75: 75 | AY75: 30 | BA75: 60 | BB75: 30 | BC75: 30 | BE75: 20 | BF75: 64 | BG75: 20 | BI75: 44 | BJ75: 22 | BK75: 22 | BO75: 262 | BQ75: 142 | BR75: 38 | BT75: =BF75+AX75+AP75 -> 237
A76: МДК.01.02 | B76: Психология социально-правовой деятельности | E76: 5 | J76: =SUM(L76:O76) -> 75 | L76: 15 | O76: 60 | P76: 30 | Q76: 30 | AX76: 75 | AY76: 15 | BA76: 60 | BB76: 30 | BC76: 30 | BO76: 75 | BQ76: 60
A77: УП.01.01 | B77: Учебная практика | E77: 45 | H77: РП | J77: False | L77: час | O77: 108 | P77: нед | Q77: 3 | T77: час | W77: нед | AA77: час | AD77: нед | AH77: час | AL77: нед | AP77: час | AS77: 108 | AT77: нед | AU77: 3 | AX77: час | BB77: нед | BF77: час | BJ77: нед
A78: ПП.01.01 | B78: Производственная практика (по профилю специальности) | E78: 4 | H78: РП | J78: False | L78: час | O78: 72 | P78: нед | Q78: 2 | T78: час | W78: нед | AA78: час | AD78: нед | AH78: час | AL78: нед | AP78: час | AS78: 36 | AT78: нед | AU78: 1 | AX78: час | BB78: нед | BF78: час | BI78: 36 | BJ78: нед | BK78: 1
A79: ПМ.1.ЭК | B79: Экзамен квалификационный | C79: 6
A81: П+73:81М.02 | B81: Организационное обеспечение деятельности учреждений социальной защиты населения и органов Пенсионного фонда Российской Федерации | C81: 2 | E81: 1 | H81: 1 | J81: =SUM(J83) -> 190 | K81: =SUM(K83) -> 0 | L81: 64 | M81: 0 | N81: 0 | O81: 126 | P81: 63 | Q81: 63 | R81: 0 | S81: 0 | AN81: 0 | AO81: 0 | AP81: 0 | AQ81: 0 | AR81: 0 | AS81: 0 | AT81: 0 | AU81: 0 | AV81: 0 | AW81: 0 | AX81: 75 | AY81: 15 | AZ81: 0 | BA81: 60 | BB81: 30 | BC81: 30 | BD81: 0 | BE81: 0 | BL81: 0 | BM81: 0 | BN81: 0 | BO81: 127 | BP81: 63 | BQ81: 108 | BR81: 18
A83: МДК.02.01 | B83: Организация работы органов и учреждений социальной защиты населения, органов Пенсионного фонда Российской Федерации | C83: 5.6 | J83: =L83+O83 -> 190 | L83: 64 | O83: 126 | P83: 63 | Q83: 63 | AX83: 75 | AY83: 15 | BA83: 60 | BB83: 30 | BC83: 30 | BF83: 100 | BG83: 34 | BI83: 66 | BJ83: 33 | BK83: 33 | BO83: 127 | BP83: 63 | BQ83: 108 | BR83: 18
A84: УП.02.01 | B84: Учебная практика | H84: РП | J84: False | L84: час | P84: нед | T84: час | W84: нед | AA84: час | AD84: нед | AH84: час | AL84: нед | AP84: час | AT84: нед | AX84: час | BB84: нед | BF84: час | BJ84: нед
A85: ПП.02.01 | B85: Производственная практика (по профилю специальности) | E85: 6 | H85: РП | J85: False | L85: час | O85: 72 | P85: нед | Q85: 2 | T85: час | W85: нед | AA85: час | AD85: нед | AH85: час | AL85: нед | AP85: час | AT85: нед | AX85: час | BB85: нед | BF85: час | BI85: 72 | BJ85: нед | BK85: 2
A86: ПМ.2.ЭК | B86: Экзамен квалификационный | C86: 6
B94: Учебная практика | E94: 5 | H94: РП | J94: False | L94: час | O94: 36 | P94: нед | Q94: 1 | T94: час | W94: нед | AA94: час | AD94: нед | AH94: час | AL94: нед | AP94: час | AT94: нед | AX94: час | BA94: 36 | BB94: нед | BC94: 1 | BF94: час | BJ94: нед
B95: Производственная практика (по профилю специальности) | H95: РП | J95: False | L95: час | P95: нед | T95: час | W95: нед | AA95: час | AD95: нед | AH95: час | AL95: нед | AP95: час | AT95: нед | AX95: час | BB95: нед | BF95: час | BJ95: нед
B96: Экзамен квалификационный | C96: 5
B99: Учебная и производственная (по профилю специальности) практики | J99: час | O99: 288 | P99: нед | Q99: 8 | T99: час | W99: нед | AA99: час | AD99: нед | AH99: час | AL99: нед | AP99: час | AS99: 144 | AT99: нед | AU99: 4 | AX99: час | BA99: 36 | BB99: нед | BC99: 1 | BF99: час | BI99: 108 | BJ99: нед | BK99: 3
B101: Учебная практика | J101: час | O101: 144 | P101: нед | Q101: 4 | T101: час | W101: нед | AA101: час | AD101: нед | AH101: час | AL101: нед | AP101: час | AS101: 108 | AT101: нед | AU101: 3 | AX101: час | BA101: 36 | BB101: нед | BC101: 1 | BF101: час | BJ101: нед
B102: Концентрированная | J102: час | O102: 144 | P102: нед | Q102: 4 | T102: час | W102: нед | AA102: час | AD102: нед | AH102: час | AL102: нед | AP102: час | AS102: 108 | AT102: нед | AU102: 3 | AX102: час | BA102: 36 | BB102: нед | BC102: 1 | BF102: час | BJ102: нед
B103: Рассредоточенная | J103: час | P103: нед | T103: час | W103: нед | AA103: час | AD103: нед | AH103: час | AL103: нед | AP103: час | AT103: нед | AX103: час | BB103: нед | BF103: час | BJ103: нед
B105: Производственная (по профилю специальности) практика | J105: час | O105: 144 | P105: нед | Q105: 4 | T105: час | W105: нед | AA105: час | AD105: нед | AH105: час | AL105: нед | AP105: час | AS105: 36 | AT105: нед | AU105: 1 | AX105: час | BB105: нед | BF105: час | BI105: 108 | BJ105: нед | BK105: 3
B106: Концентрированная | J106: час | O106: 144 | P106: нед | Q106: 4 | T106: час | W106: нед | AA106: час | AD106: нед | AH106: час | AL106: нед | AP106: час | AS106: 36 | AT106: нед | AU106: 1 | AX106: час | BB106: нед | BF106: час | BI106: 108 | BJ106: нед | BK106: 3
B107: Рассредоточенная | J107: час | P107: нед | T107: час | W107: нед | AA107: час | AD107: нед | AH107: час | AL107: нед | AP107: час | AT107: нед | AX107: час | BB107: нед | BF107: час | BJ107: нед
A109: ПДП | B109: Преддипломная практика | E109: 6 | P109: нед | Q109: 4 | W109: нед | AD109: нед | AL109: нед | AT109: нед | BB109: нед | BJ109: нед | BK109: 4
B111: Государственная итоговая аттестация | P111: нед | Q111: 6 | W111: нед | AD111: нед | AL111: нед | AT111: нед | BB111: нед | BJ111: нед | BK111: 6
B112: Подготовка выпускной квалификационной работы | P112: нед | Q112: 4 | W112: нед | AD112: нед | AL112: нед | AT112: нед | BB112: нед | BJ112: нед | BK112: 4
B113: Защита выпускной квалификационной работы | P113: нед | Q113: 2 | W113: нед | AD113: нед | AL113: нед | AT113: нед | BB113: нед | BJ113: нед | BK113: 2
B114: Подготовка к государственным экзаменам | P114: нед | W114: нед | AD114: нед | AL114: нед | AT114: нед | BB114: нед | BJ114: нед
B115: Проведение государственных экзаменов | P115: нед | W115: нед | AD115: нед | AL115: нед | AT115: нед | BB115: нед | BJ115: нед
B117: КОНСУЛЬТАЦИИ по О | J117: 100 | T117: 50 | AA117: 50
B118: в т.ч. в период обучения по циклам
B120: КОНСУЛЬТАЦИИ по ПП | J120: 280 | AH120: 50 | AP120: 50 | AX120: 90 | BF120: 90
B121: в т.ч. в период обучения по циклам
B123: ВСЕГО ПО ДИСЦИПЛИНАМ И МДК | C123: 22 | D123: 7 | E123: 29 | H123: 14 | J123: 5400 | L123: 1800 | O123: 3600 | P123: 1886 | Q123: 1694 | S123: 20 | T123: 918 | U123: 306 | V123: 612 | W123: 468 | X123: 144 | AA123: 1188 | AB123: 396 | AC123: 792 | AD123: 575 | AE123: 217 | AH123: 864 | AI123: 288 | AK123: 576 | AL123: 207 | AM123: 369 | AP123: 1026 | AQ123: 342 | AS123: 684 | AT123: 291 | AU123: 393 | AX123: 810 | AY123: 270 | BA123: 540 | BB123: 214 | BC123: 306 | BE123: 20 | BF123: 594 | BG123: 198 | BI123: 396 | BJ123: 131 | BK123: 265 | BO123: 4374 | BP123: 1026 | BQ123: 2916 | BR123: 684
B125: ВСЕГО ПО ДИСЦИПЛИНАМ И МДК (С КОНСУЛЬТАЦИЯМИ В ПЕРИОД ОБУЧЕНИЯ ПО ЦИКЛАМ) | C125: 22 | D125: 7 | E125: 29 | H125: 14 | J125: 5400 | L125: 1800 | O125: 3600 | P125: 1886 | Q125: 1694 | S125: 20 | T125: 918 | U125: 306 | V125: 612 | W125: 468 | X125: 144 | AA125: 1188 | AB125: 396 | AC125: 792 | AD125: 575 | AE125: 217 | AH125: 864 | AI125: 288 | AK125: 576 | AL125: 207 | AM125: 369 | AP125: 1026 | AQ125: 342 | AS125: 684 | AT125: 291 | AU125: 393 | AX125: 810 | AY125: 270 | BA125: 540 | BB125: 214 | BC125: 306 | BE125: 20 | BF125: 594 | BG125: 198 | BI125: 396 | BJ125: 131 | BK125: 265 | BO125: 4374 | BP125: 1026 | BQ125: 2916 | BR125: 684
B127: Экзамены (без учета физ. культуры) | AA127: 6 | AH127: 1 | AP127: 4 | AX127: 4 | BF127: 4
B128: Зачеты (без учета физ. культуры) | AH128: 1 | AP128: 1 | AX128: 1
B129: Диффер. зачеты (без учета физ. культуры) | T129: 5 | AA129: 5 | AH129: 5 | AP129: 3 | AX129: 3 | BF129: 5
B130: Курсовые проекты (без учета физ. культуры)
B131: Курсовые работы (без учета физ. культуры)

Sheet Компетенции
A1: Индекс | E1: Содержание
A2: ОК 1 | D2: 1 | E2: Понимать сущность и социальную значимость своей будущей профессии, проявлять к ней устойчивый интерес.
B3: ОГСЭ.01 | D3: 2 | E3: Основы философии
B4: ОГСЭ.02 | D4: 3 | E4: История
B5: ОГСЭ.03 | D5: 4 | E5: Иностранный язык
B6: ОГСЭ.04 | D6: 5 | E6: Русский язык и культура речи
B7: ЕН.01 | D7: 6 | E7: Математика
B8: ЕН.02 | D8: 7 | E8: Информатика
B9: ОП.16 | D9: 8 | E9: Безопасность жизнедеятельности
B10: ОП.05 | D10: 9 | E10: Трудовое право
B11: ОП.08 | D11: 10 | E11: Гражданский процесс
B12: ОП.09 | D12: 11 | E12: Страховое дело
B13: ОП.12 | D13: 12 | E13: Менеджмент
B14: ОП.13 | D14: 13 | E14: Документационное обеспечение управления
B15: ОП.14 | D15: 14 | E15: Информационные технологии в профессиональной деятельности
B16: МДК.01.01 | D16: 15 | E16: Право социального обеспечения
B17: МДК.01.02 | D17: 16 | E17: Психология социально-правовой деятельности
B18: УП.01.01 | D18: 17 | E18: Учебная практика
B19: ПП.01.01 | D19: 18 | E19: Производственная практика (по профилю специальности)
B20: МДК.02.01 | D20: 19 | E20: Организация работы органов и учреждений социальной защиты населения, органов Пенсионного фонда Российской Федерации
B21: УП.02.01 | D21: 20 | E21: Учебная практика
B22: ПП.02.01 | D22: 21 | E22: Производственная практика (по профилю специальности)
B23: МДК.03.01 | D23: 22 | E23: Организация предпринимательской деятельности
B24: УП.03.01 | D24: 23 | E24: Учебная практика
B25: ПП.03.01 | D25: 24 | E25: Производственная практика (по профилю специальности)
D26: 25
D27: 26
D28: 27
D29: 28
D30: 29
D31: 30
D32: 31
D33: 32
D34: 33
D35: 34
D36: 35
D37: 36
D38: 37
D39: 38
D40: 39
D41: 40
D42: 41
D43: 42
D44: 43
D45: 44
D46: 45
D47: 46
D48: 47
D49: 48
D50: 49
D51: 50
D52: 51
D53: 52
D54: 53
D55: 54
D56: 55
D57: 56
D58: 57
D59: 58
D60: 59
D61: 60
D62: 61
D63: 62
D64: 63
D65: 64
D66: 65
D67: 66
D68: 67
D69: 68
D70: 69
D71: 70
D72: 71
D73: 72
D74: 73
D75: 74
D76: 75
D77: 76
D78: 77
D79: 78
D80: 79
D81: 80
D82: 81
A83: ОК 2 | D83: 1 | E83: Организовывать собственную деятельность, выбирать типовые методы и способы выполнения профессиональных задач, оценивать их эффективность и качество.
B84: ОГСЭ.05 | D84: 2 | E84: Физическая культура
B85: ОГСЭ.01 | D85: 3 | E85: Основы философии
B86: ОГСЭ.02 | D86: 4 | E86: История
B87: ОГСЭ.03 | D87: 5 | E87: Иностранный язык
B88: ОГСЭ.04 | D88: 6 | E88: Русский язык и культура речи
B89: ЕН.01 | D89: 7 | E89: Математика
B90: ЕН.02 | D90: 8 | E90: Информатика
B91: ОП.16 | D91: 9 | E91: Безопасность жизнедеятельности
B92: ОП.02 | D92: 10 | E92: Конституционное право
B93: ОП.03 | D93: 11 | E93: Административное право
B94: ОП.04 | D94: 12 | E94: Основы экологического права
B95: ОП.05 | D95: 13 | E95: Трудовое право
B96: ОП.06 | D96: 14 | E96: Гражданское право
B97: ОП.07 | D97: 15 | E97: Семейное право
B98: ОП.08 | D98: 16 | E98: Гражданский процесс
B99: ОП.09 | D99: 17 | E99: Страховое дело
B100: ОП.10 | D100: 18 | E100: Статистика
B101: ОП.11 | D101: 19 | E101: Экономика организации
B102: ОП.12 | D102: 20 | E102: Менеджмент
B103: ОП.13 | D103: 21 | E103: Документационное обеспечение управления
B104: ОП.14 | D104: 22 | E104: Информационные технологии в профессиональной деятельности
B105: УП.01.01 | D105: 23 | E105: Учебная практика
B106: ПП.01.01 | D106: 24 | E106: Производственная практика (по профилю специальности)
B107: МДК.02.01 | D107: 25 | E107: Организация работы органов и учреждений социальной защиты населения, органов Пенсионного фонда Российской Федерации
B108: УП.02.01 | D108: 26 | E108: Учебная практика
B109: ПП.02.01 | D109: 27 | E109: Производственная практика (по профилю специальности)
B110: МДК.03.01 | D110: 28 | E110: Организация предпринимательской деятельности
B111: УП.03.01 | D111: 29 | E111: Учебная практика
B112: ПП.03.01 | D112: 30 | E112: Производственная практика (по профилю специальности)
D113: 31
D114: 32
D115: 33
D116: 34
D117: 35
D118: 36
D119: 37
D120: 38
D121: 39
D122: 40
D123: 41
D124: 42
D125: 43
D126: 44
D127: 45
D128: 46
D129: 47
D130: 48
D131: 49
D132: 50
D133: 51
D134: 52
D135: 53
D136: 54
D137: 55
D138: 56
D139: 57
D140: 58
D141: 59
D142: 60
D143: 61
D144: 62
D145: 63
D146: 64
D147: 65
D148: 66
D149: 67
D150: 68
D151: 69
D152: 70
D153: 71
D154: 72
D155: 73
D156: 74
D157: 75
D158: 76
D159: 77
D160: 78
D161: 79
D162: 80
D163: 81
A164: ОК 3 | D164: 1 | E164: Принимать решения в стандартных и нестандартных ситуациях и нести за них ответственность.
B165: ОГСЭ.05 | D165: 2 | E165: Физическая культура
B166: ОГСЭ.01 | D166: 3 | E166: Основы философии
B167: ОГСЭ.02 | D167: 4 | E167: История
B168: ОГСЭ.03 | D168: 5 | E168: Иностранный язык
B169: ОГСЭ.04 | D169: 6 | E169: Русский язык и культура речи
B170: ЕН.01 | D170: 7 | E170: Математика
B171: ЕН.02 | D171: 8 | E171: Информатика
B172: ОП.16 | D172: 9 | E172: Безопасность жизнедеятельности
B173: ОП.05 | D173: 10 | E173: Трудовое право
B174: ОП.09 | D174: 11 | E174: Страховое дело
B175: ОП.10 | D175: 12 | E175: Статистика
B176: ОП.11 | D176: 13 | E176: Экономика организации
B177: ОП.12 | D177: 14 | E177: Менеджмент
B178: ОП.13 | D178: 15 | E178: Документационное обеспечение управления
B179: ОП.14 | D179: 16 | E179: Информационные технологии в профессиональной деятельности
B180: МДК.01.01 | D180: 17 | E180: Право социального обеспечения
B181: МДК.01.02 | D181: 18 | E181: Психология социально-правовой деятельности
B182: УП.01.01 | D182: 19 | E182: Учебная практика
B183: ПП.01.01 | D183: 20 | E183: Производственная практика (по профилю специальности)
B184: МДК.02.01 | D184: 21 | E184: Организация работы органов и учреждений социальной защиты населения, органов Пенсионного фонда Российской Федерации
B185: УП.02.01 | D185: 22 | E185: Учебная практика
B186: ПП.02.01 | D186: 23 | E186: Производственная практика (по профилю специальности)
B187: МДК.03.01 | D187: 24 | E187: Организация предпринимательской деятельности
B188: УП.03.01 | D188: 25 | E188: Учебная практика
B189: ПП.03.01 | D189: 26 | E189: Производственная практика (по профилю специальности)
D190: 27
D191: 28
D192: 29
D193: 30
D194: 31
D195: 32
D196: 33
D197: 34
D198: 35
D199: 36
D200: 37
... 1502 more rows

Sheet Компетенции(2)
B2: 1 | C2: НО | E2: Начальное общее образование
B3: 2
B4: 3
B5: 4
B6: 5
B7: 6
B8: 7
B9: 8
B11: 1 | C11: ОО | E11: Основное общее образование
B12: 2
B13: 3
B14: 4
B15: 5
B16: 6
B17: 7
B18: 8
B20: 1 | C20: БД | E20: Базовые дисциплины
B21: 2
B22: 3
B23: 4
B24: 5
B25: 6
B26: 7
B27: 8
A28: 0 | B28: 1 | C28: БД.01 | D28: 3 | E28: Иностранный язык
B29: 2
B30: 3
B31: 4
B32: 5
B33: 6
B34: 7
B35: 8
A36: 1 | B36: 1 | C36: БД.02 | D36: 3 | E36: Обществознание (включая экономику и право)
B37: 2
B38: 3
B39: 4
B40: 5
B41: 6
B42: 7
B43: 8
A44: 2 | B44: 1 | C44: БД.03 | D44: 3 | E44: Математика
B45: 2
B46: 3
B47: 4
B48: 5
B49: 6
B50: 7
B51: 8
A52: 3 | B52: 1 | C52: БД.04 | D52: 3 | E52: Информатика и ИКТ
B53: 2
B54: 3
B55: 4
B56: 5
B57: 6
B58: 7
B59: 8
A60: 4 | B60: 1 | C60: БД.05 | D60: 3 | E60: География
B61: 2
B62: 3
B63: 4
B64: 5
B65: 6
B66: 7
B67: 8
A68: 5 | B68: 1 | C68: БД.06 | D68: 3 | E68: Естествознание
B69: 2
B70: 3
B71: 4
B72: 5
B73: 6
B74: 7
B75: 8
A76: 6 | B76: 1 | C76: БД.07 | D76: 3 | E76: Искусство (МХК)
B77: 2
B78: 3
B79: 4
B80: 5
B81: 6
B82: 7
B83: 8
A84: 7 | B84: 1 | C84: БД.08 | D84: 3 | E84: Физическая культура
B85: 2
B86: 3
B87: 4
B88: 5
B89: 6
B90: 7
B91: 8
A92: 8 | B92: 1 | C92: БД.09 | D92: 3 | E92: Основы безопасности жизнедеятельности
B93: 2
B94: 3
B95: 4
B96: 5
B97: 6
B98: 7
B99: 8
B101: 1 | C101: ПД | E101: Профильные дисциплины
B102: 2
B103: 3
B104: 4
B105: 5
B106: 6
B107: 7
B108: 8
A109: 9 | B109: 1 | C109: ПД.01 | D109: 4 | E109: Русский язык
B110: 2
B111: 3
B112: 4
B113: 5
B114: 6
B115: 7
B116: 8
A117: 10 | B117: 1 | C117: ПД.02 | D117: 4 | E117: Литература
B118: 2
B119: 3
B120: 4
B121: 5
B122: 6
B123: 7
B124: 8
A125: 11 | B125: 1 | C125: ПД.03 | D125: 4 | E125: История
B126: 2
B127: 3
B128: 4
B129: 5
B130: 6
B131: 7
B132: 8
B134: 1 | C134: ОГСЭ | E134: Общий гуманитарный и социально-экономический цикл | F134: ОК 1 | G134: ОК 2 | H134: ОК 3 | I134: ОК 4 | J134: ОК 5 | K134: ОК 6 | L134: ОК 7 | M134: ОК 8 | N134: ОК 9 | O134: ОК 10 | P134: ОК 11 | Q134: ОК 12
B135: 2
B136: 3
B137: 4
B138: 5
B139: 6
B140: 7
B141: 8
A142: 12 | B142: 1 | C142: ОГСЭ.05 | D142: 6 | E142: Физическая культура | F142: ОК 2 | G142: ОК 3 | H142: ОК 6 | I142: ОК 10
B143: 2
B144: 3
B145: 4
B146: 5
B147: 6
B148: 7
B149: 8
A150: 13 | B150: 1 | C150: ОГСЭ.01 | D150: 6 | E150: Основы философии | F150: ОК 1 | G150: ОК 2 | H150: ОК 3 | I150: ОК 4 | J150: ОК 5 | K150: ОК 6 | L150: ОК 7 | M150: ОК 8 | N150: ОК 9 | O150: ОК 10 | P150: ОК 11 | Q150: ОК 12
B151: 2
B152: 3
B153: 4
B154: 5
B155: 6
B156: 7
B157: 8
A158: 14 | B158: 1 | C158: ОГСЭ.02 | D158: 6 | E158: История | F158: ОК 1 | G158: ОК 2 | H158: ОК 3 | I158: ОК 4 | J158: ОК 5 | K158: ОК 6 | L158: ОК 7 | M158: ОК 8 | N158: ОК 9 | O158: ОК 10 | P158: ОК 11 | Q158: ОК 12
B159: 2
B160: 3
B161: 4
B162: 5
B163: 6
B164: 7
B165: 8
A166: 15 | B166: 1 | C166: ОГСЭ.03 | D166: 6 | E166: Иностранный язык | F166: ОК 1 | G166: ОК 2 | H166: ОК 3 | I166: ОК 4 | J166: ОК 5 | K166: ОК 6 | L166: ОК 7 | M166: ОК 8 | N166: ОК 9 | O166: ОК 10 | P166: ОК 11 | Q166: ОК 12
B167: 2
B168: 3
B169: 4
B170: 5
B171: 6
B172: 7
B173: 8
A174: 16 | B174: 1 | C174: ОГСЭ.04 | D174: 6 | E174: Русский язык и культура речи | F174: ОК 1 | G174: ОК 2 | H174: ОК 3 | I174: ОК 4 | J174: ОК 5 | K174: ОК 6 | L174: ОК 7 | M174: ОК 8 | N174: ОК 9 | O174: ОК 10 | P174: ОК 11 | Q174: ОК 12
B175: 2
B176: 3
B177: 4
B178: 5
B179: 6
B180: 7
B181: 8
B183: 1 | C183: ЕН | E183: Математический и общий естественнонаучный цикл | F183: ОК 1 | G183: ОК 2 | H183: ОК 3 | I183: ОК 4 | J183: ОК 5 | K183: ОК 6 | L183: ОК 7 | M183: ОК 8 | N183: ОК 9 | O183: ОК 10 | P183: ОК 11 | Q183: ОК 12
B184: 2 | F184: ПК 1.5 | G184: ПК 2.1 | H184: ПК 2.2
B185: 3
B186: 4
B187: 5
B188: 6
B189: 7
B190: 8
A191: 17 | B191: 1 | C191: ЕН.01 | D191: 7 | E191: Математика | F191: ОК 1 | G191: ОК 2 | H191: ОК 3 | I191: ОК 4 | J191: ОК 5 | K191: ОК 6 | L191: ОК 9
B192: 2
B193: 3
B194: 4
B195: 5
B196: 6
B197: 7
B198: 8
A199: 18 | B199: 1 | C199: ЕН.02 | D199: 7 | E199: Информатика | F199: ОК 1 | G199: ОК 2 | H199: ОК 3 | I199: ОК 4 | J199: ОК 5 | K199: ОК 6 | L199: ОК 7 | M199: ОК 8 | N199: ОК 9 | O199: ОК 10 | P199: ОК 11 | Q199: ОК 12
B200: 2 | F200: ПК 1.5 | G200: ПК 2.1 | H200: ПК 2.2
B201: 3
B202: 4
B203: 5
B204: 6
B205: 7
B206: 8
... 248 more rows

Sheet Кабинеты
B1: № | C1: Наименование
C2: Кабинеты:
B3: 1 | C3: истории;
B4: 2 | C4: основ философии;
B5: 3 | C5: иностранного языка;
B6: 4 | C6: основ экологического права;
B7: 5 | C7: теории государства и права;
B8: 6 | C8: конституционного и административного права;
B9: 7 | C9: трудового права;
B10: 8 | C10: гражданского, семейного права и гражданского процесса;
B11: 9 | C11: дисциплин права;
B12: 10 | C12: менеджмента и экономики организации;
B13: 11 | C13: профессиональных дисциплин;
B14: 12 | C14: права социального обеспечения;
B15: 13 | C15: безопасности жизнедеятельности.
C16: Лаборатории:
B17: 1 | C17: информатики;
B18: 2 | C18: информационных технологий в профессиональной деятельности;
C19: Спортивный комплекс:
B20: 1 | C20: спортивный зал;
B21: 2 | C21: открытый стадион широкого профиля с элементами полосы препятствий;
B22: 3 | C22: стрелковый тир (в любой модификации, включая электронный) или место для стрельбы.
C23: Залы:
B24: 1 | C24: библиотека, читальный зал с выходом в сеть Интернет;
B25: 2 | C25: актовый зал.

Sheet Пояснения
B1: Пояснения
B2: 1. Настоящий учебный план ППССЗ разработан на основе Федерального государственного образовательного стандарта среднего профессионального образования по специальности 40.02.01 Право и организация социального обеспечения, утвержденного приказом Министерства образования и науки Российской Федерации от 12 мая 2014 г. N 508.
B3: 2. Общеобразовательный цикл ППССЗ сформирован в соответствии с приказом Министерства образования и науки РФ "Об утверждении порядка организации и осуществления образовательной деятельности по образовательным программам среднего профессионального образования" и разъяснениями по реализации образовательной программы среднего общего образования в пределах освоения образовательных программ среднего профессионального образования на базе основного общего образования с учетом требований ФГОС и профиля получаемого профессионального образования, одобрено решением Научно-методического совета Центра профессионального образования ФГАУ "ФИРО"
B4: 3. Рабочий учебный план составлен с учетом потребностей регионального рынка труда. Вариативная часть ППССЗ направлена на формирование профессиональных компетенций, соответствующих виду профессиональной деятельности: Право и организация социального обеспечения.
B5: 4.Варитативная часть распределена следующим образом: Добавлена дисциплина в цикле ОГСЭ: Русский язык и культура речи - 48 час; добавлены часы на Иностранный язык в количестве 19 часов; увеличен цикл ОП на 569 часов, в том числе добавлена дисциплина уголовное правоо - 102 час; уголовный процесс -57 часов; добавлены часы на изучение профессиональных модулей в количестве 109 часов, в том числе добавлен модуль Всего распределено 684 часа.
B6: 5. Максимальный объем учебной нагрузки обучающегося составляет 54 академических часа в неделю, включая все виды аудиторной и внеаудиторной (самостоятельной) учебной работы по освоению ППССЗ. Максимальный объем аудиторной учебной нагрузки при очной форме получения образования составляет 36 академических часов в неделю.
B7: 6. Выполнение курсовой работы предусмотрено по МДК.01.01 Право и социальное обеспечение в 5 семестре. Выполнение курсовой работы рассматривается как вид учебной работы по профессиональному модулю и реализуется в пределах времени, отведенного на его освоение.
B8: 7. Оценка качества освоения дисциплин, междисциплинарных курсов, профессиональных модулей включает текущий контроль и промежуточную аттестацию.
B9: 8. В учебном плане закреплены следующие формы проведения промежуточной аттестации: экзаменты, зачеты, дифференцированые зачеты и другие формы контроля. Количество экзаменов в учебном году не превышает 8, зачетов - 10.
B10: 9. Время, отведенное учебными планами на консультации, предназначено для дополнительной подготовки к экзаменам, зачетам и работе с неуспевающими студентами и составляет не менее 4 часов из расчета на одного студента на каждый учебный год. Консультации проводятся как групповые, так и индивидуальные, на основе утвержденных учебным отделом графиков.
B11: 10. Учебная и производственная практика (по профилю специальности) в количестве 8 недель реализуются концентрированно в несколько периодов в рамках професииональных модулей: учебная практика по обеспечению реализации прав граждан в сфере пенсионного обеспечения и социальной защиты - 3 недели; учебная практика по организации предпринимательской деятельности - 1 неделя; производственная практика (по профилю специальности) по обеспечению реализации прав граждан в сфере пенсионного обеспечения и социальной защиты - 2 недели; производственная практика (по профилю специальности) по организационному обеспечению деятельности учреждений социальной защиты населения и органов Пенсионного фонда Российской Федерации - 2 недели. Формой аттестации по результатам учебной практики является зачёт, по результатам производственной (по профилю специальности) и преддипломной практик - дифференцированный зачёт.
B12: 11. Производственная практика (преддипломная) в количестве 4 недель реализуется перед ГИА (ИА) и направлена на углубление студентом первоначального профессионального опыта, проверку его готовности к самостоятельной трудовой деятельности, а также на подготовку к выполнению выпускной квалификационной работы.
B13: 12. Государственная итоговая аттестация включает подготовку и защиту выпускной квалификационной работы - дипломной работы. Тематика дипломной работы соответствует содержанию одного или нескольких профессиональных модулей.
B14: 13. В рамках дисциплины "Безопасность жизнедеятельности" предусмотрено освоение основ военной службы
B15: 14. В колледже установлена шестидневная учебная неделя. Продолжительность занятий - 90 минут
B16: Согласовано
B17: Юрист -консульт ГК Лаура ООО "Авто-Хоста" | D17: Журавлева О.В.
B18: Зав.кафедры Гражданско - правовых дисциплин филиала ВГУЮ (РПА Минюста России)в г. Сочи | D18: к.ю.н. Сарычев И.А.

Sheet Start (hidden)
